Workbook

Sheet Solar Simulator
S3: For help with quoting please email or call 1300 080 163 admin@asmmoney.com.au this is solar presenter version 10m standard v0218
C6: Customer Name | O6: Installation address
C8: Phone | O8: Email
C13: =IF(g_37=data!F3,"Total price [after STCs] Including GST:", "Total price [after STCs] Excluding GST:") -> Total price [after STCs] Excluding GST: | K13: 100000 | Q13: Your nearest major city: | W13: Sydney NSW
I15: Deposit: | K15: 0 | R15: System size (kW): | W15: 10 | AA15: kW
H17: =IF(j_13="*", "Minimum amount is $2,000","") ->  | I17: =IF(j_13="***","","TOTAL:") -> TOTAL: | K17: =IF(K13-K15<2000,"*",K13-K15) -> 100000 | V17: ="Standard daily output " & IFERROR(data!J10,"") & "kWh." -> Standard daily output 39kWh. | W17: 39 | AA17: kWh
C20: Your current rates: | L20: Usage weighting: | X20: Your current daily electricity usage: | Y20: 40 | AB20: /kWh
C22: Peak: | F22: 0.3 | I22: /kWh | M22: 0.5 | O22: =IF(M22+M24+M26<>1,"*Weighting levels must add to 100% - please adjust.","") ->  | X22: % of generated power used on site: | Y22: 0.8
C24: Shoulder: | F24: 0 | I24: /kWh | M24: 0 | X24: Your current feed-in tariff: | Y24: 0.11 | AB24: /kWh
C26: Off-peak: | F26: 0.3 | I26: /kWh | M26: 0.5 | X26: Expected increase in electricity price: | Y26: 0.07
C29: Finance product: | G29: Commercial Finance | R29: Select type of finance: | S29: Finance lease
C32: =IF(g_37<>data!F3,"ABN","") -> ABN | X32: Rate: | Y32: 0.065
C34: Total: | G34: =IFERROR(IF(g_37=data!F5,IF(j_13>=10000000,"Contact ASM Money for quote", j_13),IF(AND(g_37="Commercial finance",'Solar Simulator'!S29=data!F10),j_13*1.1,j_13)),"") -> 100000 | S34: Your chosen loan term: | T34: 84 | V34: months | Y34: Last payment
C36: Your chosen loan term: | I36: 120 | K36: months | S36: Grid inflation: | T36: 0.07 | Y36: =data!G51 -> 1200
C38: Interest rate: | I38: 0.1245 | S38: Your chosen loan term: | T38: 60 | V38: months | X38: =IF(g_37=aj_6,"* Over 84 months contact ASM Money.","") -> * Over 84 months contact ASM Money.
C40: Establishment Fee | I40: 200 | S40: Finance lease residual value | T40: 0
C42: Monthly Fee: | I42: 7.5 | S42: Chattel Mortgage residual value | T42: 0
C43: =IF(g_37=data!F3,"Calculator adds fees and monthly fee to come up with the total payment for the client.", "") ->  | T43: =IF(AND(g_37=aj_6,b_9>=100000),"Please call ASM Money for better rate",IF(t_37="***","Please call ASM Money for better rate","")) -> Please call ASM Money for better rate
C45: =IF(OR(S29=FO_2,S29=FO_3),"Residual Value","") -> Residual Value | H45: Monthly: | M45: =IF(g_37=data!F3,"Fortnightly:","Term") -> Term | R45: =IF(g_37=data!F3,"Weekly:",IF(AND(S29=data!F9,g_37=data!F4),"Residual","Total")) -> Residual | W45: =IF(g_37=data!F3,"Daily:",IF(AND(S29=data!F9,g_37=data!F4),"Total",IF(AND(S29=data!F10,g_37=data!F4),"GST claimed on your next BAS",""))) -> Total
C46: =IF(S29=FO_2,data!N69,IF('Solar Simulator'!S29=FO_3,data!R69,"")) -> 0 | H46: =IFERROR(IF(g_37=data!F3,data!G43,IF(g_37=data!F5,IF(b_9>=10000000,"***",data!G53),IF('Solar Simulator'!S29=FO_1,data!J69,IF('Solar Simulator'!S29=FO_2,data!N70,data!R70)))),"") -> 2110.829864 | L46: =IF(g_37=data!F5,"+GST","") ->  | M46: =IF(g_37=data!F3,data!G44,IF('Solar Simulator'!S29=FO_1,data!J70,IF('Solar Simulator'!S29=FO_2,data!N71,data!R71))) -> 60 | R46: =IFERROR(IF(g_37=data!F3,data!G45,IF('Solar Simulator'!S29=FO_1,data!J71,IF('Solar Simulator'!S29=FO_3,data!R72,data!N62))),"") -> 0 | W46: =IFERROR(IF(g_37=data!F3,data!G46,IF(g_37=data!F4,IF('Solar Simulator'!S29=FO_2,data!N72,IF(S29=FO_3,data!R74,"")))),"") -> 126649.7919
C49: In just the first year, your solar PV system could: | R49: Investment analysis:
D51: =IFERROR("• Generate $"&INT(z_35)&".00 worth of electricity ","") -> • Generate $3729.00 worth of electricity | W51: =IF(g_37=data!F3,"Total Savings over 20 years:","NPV* of solar install (before tax):") -> NPV* of solar install (before tax): | X51: =IFERROR(IF(g_37=data!F3,data!AH28,(NPV(X53,data!AE6:AE25))),"") -> -33318.50106
D53: =IFERROR("• Prevent "&(INT(t_15*365*VLOOKUP(t_13,data!B3:D12,3,FALSE)/100))/10&" tonnes of CO2 from entering the atmosphere","") ->  | W53: =IF(OR(g_37=aj_6,g_37=data!F5),"NVP discount rate:","") -> NVP discount rate: | X53: 0.06
D55: =IFERROR(IF(g_37=data!F3,IF(ab_35>0.1,("• Save you $"&ac_35)&", after repayments!","• Cost you just $"&-1*INT(ac_35/365*100)/100&" extra per day."),IF(ac_37>0.1,"• Save you $"&ac_37&" (post-tax), after repayments!","• Cost you just $"&-1*INT(ac_35/365*100)/100&" extra per day.")),"") -> • Cost you just $59.18 extra per day. | W55: Effective cost of solar generation: | X55: =IFERROR(data!AQ7,"") -> 0.4663546926 | AA55: / kWh
X56: (over 20 years)
B57: =IF(OR(g_37=aj_6,g_37=data!F5),"*Net Present Value (or NPV) is the sum of all the value your solar system will deliver over it's lifetime, minus its costs, adjusted for inflation and interest (i.e. NPV discount rate).","") -> *Net Present Value (or NPV) is the sum of all the value your solar system will deliver over it's lifetime, minus its costs, adjusted for inflation and interest (i.e. NPV discount rate).
B69: =IF(g_37=data!F3,"This is not an offer of finance and the information presented is an estimate only to assist you in making an informed decision about financial products to support your decision to purchase a solar solution."&" Final figures may incur additional fees and charges which will be detailed in any contract offered for finance."&" Repayments are based on an unsecured loan with a term of up to 120 months at an annual percentage rate of 9.95% (comparison rate 12.92%) accurate as of 30 April 2014. "&"Terms, fees, charges and credit criteria apply. The consumer credit product is the Thorn Money Solar Loan and the provider is Thorn Australia Pty Ltd ABN 63 008 454 439 "&"Australian Credit Licence 383003. Comparison rate based on an unsecured loan of $10,000 over a term of 3 years."&" WARNING the comparison rate is true only for the example given and may not include all fees and charges."&" Different terms , fees and other loan amounts might result in a different comparison rate. This information is based solely on the information supplied by the customer named and is an estimate of the likely benefits of installing a solar system."&" Changes to regulations, tariffs and electricity pricing may affect the outcome.","Application for finance submitted to ASM Money Pty Ltd ABN 88 158 031 960 are subject to credit approval, terms and conditions. "&"This information is presented to assist making an informed decision about financial products to support your decision to purchase a solar solution. This is not an offer of finance,"&" does not present financial, accounting, general or personal advice nor is it a recommendation. This information is based solely "&"on the information supplied by the customer named and is an estimate of the likely benefits of installing a solar system. Changes to regulations, tariffs and electricity pricing may affect the outcome.") -> Application for finance submitted to ASM Money Pty Ltd ABN 88 158 031 960 are subject to credit approval, terms and conditions. This information is presented to assist making an informed decision about financial products to support your decision to purchase a solar solution. This is not an offer of finance, does not present financial, accounting, general or personal advice nor is it a recommendation. This information is based solely on the information supplied by the customer named and is an estimate of the likely benefits of installing a solar system. Changes to regulations, tariffs and electricity pricing may affect the outcome.
B75: ©ASM Money Pty Ltd. This estimating tool is for use by ASM Money accredited solar finance dealers and is subject to licensing terms and conditions.

Sheet data (hidden)
M1: Weighted Cost Power | N1: checked | AH1: =AH6/12 -> 365 | AI1: =AI6/12 -> 54.2025 | AJ1: =AJ6/12 -> 2110.829864 | AX1: =OFFSET(data!$AX$3,1,0,MAX(data!$AW:$AW),1) -> 
B2: Nearest City | C2: Co2 conversion factor | F2: Finance_product | M2: =IF(('Solar Simulator'!M22+'Solar Simulator'!M24+'Solar Simulator'!M26)<>1,"",(d_25*'Solar Simulator'!M22)+(d_27*'Solar Simulator'!M24)+(d_29*'Solar Simulator'!M26)) -> 0.3 | AA2: Outright Purchase | AD2: =IF(g_37=aj_6,b_7,IF(g_37=F3,j_39,'Solar Simulator'!T34)) -> 60
B3: Adelaide SA | C3: 4.2 | D3: 0.79 | F3: Residential loan | W3: Year | X3: Total Annual Demand (kwh) | Y3: Loan stats | Z3: Blended Value of power | AA3: NPV/IRR Calcs | AB3: Cumulative savings | AC3: Initial | AD3: Repayment | AE3: Loan cash flows | AF3: power cost | AG3: Year | AH3: Loan Figures | AK3: Cost of Power | AQ3: Average cost of power | AW3: =IF(B3="","",MAX(AW$2:AW2)+1) -> 1 | AX3: =IFERROR(INDEX($B$2:$B$62,MATCH(ROW()-ROW($AX$2),$AW$2:$AW$62,0)),"") -> Adelaide SA
B4: Albany WA | C4: 3.9 | D4: 0.8606474379 | F4: Commercial Finance | M4: Blended solar power value | W4: Initial | Y4: Solar Yield | AA4: Cash flows | AW4: =IF(B4="","",MAX(AW$2:AW3)+1) -> 2 | AX4: =IFERROR(INDEX($B$2:$B$62,MATCH(ROW()-ROW($AX$2),$AW$2:$AW$62,0)),"") -> Albany WA
B5: Alice Springs NT | C5: 5 | D5: 0.79 | F5: Governmnet and Schools Rental | N5: checked | AA5: =-1*j_13 -> -100000 | AH5: Old utility bill | AI5: New utility bill | AJ5: Loan payments | AK5: Existing | AL5: Solar | AM5: Avg Solar | AN5: =AK5 -> Existing | AO5: =AL5 -> Solar | AQ5: =SUM(AJ6:AJ25) -> 126649.7919 | AR5: total 20 yr solar bill | AW5: =IF(B5="","",MAX(AW$2:AW4)+1) -> 3 | AX5: Alice Springs NT
B6: Brisbane Qld | C6: 4.2 | D6: 0.98 | M6: =IF(('Solar Simulator'!M22+'Solar Simulator'!M24+'Solar Simulator'!M26)<>1,"",(((d_25*'Solar Simulator'!M22)+(d_27*'Solar Simulator'!M24))*(1/('Solar Simulator'!M22+'Solar Simulator'!M24))*'Solar Simulator'!Y22)+((1-'Solar Simulator'!Y22)*'Solar Simulator'!Y24)) -> 0.262 | W6: 1 | X6: ='Solar Simulator'!Y20*365 -> 14600 | Y6: =t_15*365 -> 14235 | Z6: =z_29 -> 0.262 | AA6: =Y6*Z6 -> 3729.57 | AB6: =AA6 -> 3729.57 | AC6: 1 | AD6: =IF($AD$2/12>=AC6,aa_35,0) -> 25329.95837 | AE6: =AA6-AD6 -> -21600.38837 | AF6: =M2 -> 0.3 | AG6: =AC6 -> 1 | AH6: =X6*AF6 -> 4380 | AI6: =AH6-(Y6*Z6) -> 650.43 | AJ6: =AD6 -> 25329.95837 | AK6: =AF6 -> 0.3 | AL6: =IF((AJ6)/Y6>0.001,(AJ6)/Y6,0.001) -> 1.779414006 | AM6: ='Solar Simulator'!X$55 -> 0.4663546926 | AN6: =AK6*100 -> 30 | AO6: =AL6*100 -> 177.9414006 | AQ6: =SUM(Y6:Y25) -> 271573.9627 | AR6: total 20 yr usage | AW6: =IF(B6="","",MAX(AW$2:AW5)+1) -> 4 | AX6: Brisbane Qld
B7: Cairns Qld | C7: 4.2 | D7: 1.04 | F7: Commercial_Finance | W7: 2 | X7: =X6 -> 14600 | Y7: =Y6*(1-ab_5) -> 14163.825 | Z7: =Z6*(1+t_29) -> 0.28034 | AA7: =Y7*Z7 -> 3970.686701 | AB7: =AA7+AB6 -> 7700.256701 | AC7: =AC6+1 -> 2 | AD7: 25329.95837 | AE7: =AA7-AD7 -> -21359.27167 | AF7: =AF6*(1+t_29) -> 0.321 | AG7: =AC7 -> 2 | AH7: =X7*AF7 -> 4686.6 | AI7: =AH7-(Y7*Z7) -> 715.9132995 | AJ7: =AD7 -> 25329.95837 | AK7: =AF7 -> 0.321 | AL7: =IF((AJ7)/Y7>0.001,(AJ7)/Y7,0.001) -> 1.788355785 | AM7: ='Solar Simulator'!X$55 -> 0.4663546926 | AN7: =AK7*100 -> 32.1 | AO7: =AL7*100 -> 178.8355785 | AQ7: =AQ5/AQ6 -> 0.4663546926 | AR7: Avg cost over 20 yrs | AW7: =IF(B7="","",MAX(AW$2:AW6)+1) -> 5 | AX7: Cairns Qld
B8: Canberra ACT | C8: 4.3 | D8: 1.06 | F8: Solar Rental | M8: Annual $ saving | N8: checked | W8: 3 | X8: =X7 -> 14600 | Y8: 14093.00588 | Z8: 0.2999638 | AA8: 4227.391596 | AB8: =AA8+AB7 -> 11927.6483 | AC8: =AC7+1 -> 3 | AD8: 25329.95837 | AE8: -21102.56678 | AF8: 0.34347 | AG8: 3 | AH8: 5014.662 | AI8: 787.2704043 | AJ8: 25329.95837 | AK8: 0.34347 | AL8: 1.797342497 | AM8: ='Solar Simulator'!X$55 -> 0.4663546926 | AN8: 34.347 | AO8: 179.7342497 | AW8: =IF(B8="","",MAX(AW$2:AW7)+1) -> 6 | AX8: Canberra ACT
B9: Darwin NT | C9: 4.4 | D9: 0.79 | F9: Finance lease | I9: System size (kW) | J9: ='Solar Simulator'!W15 -> 10 | L9: Normal | M9: =INT((M6*(t_15*365)*100))/100 -> 3729.57 | W9: 4 | X9: 14600 | Y9: 14022.54085 | Z9: 0.320961266 | AA9: 4500.692462 | AB9: 16428.34076 | AC9: 4 | AD9: 25329.95837 | AE9: -20829.26591 | AF9: 0.3675129 | AG9: 4 | AH9: 5365.68834 | AI9: 864.9958777 | AJ9: 25329.95837 | AK9: 0.3675129 | AL9: 1.806374369 | AM9: ='Solar Simulator'!X$55 -> 0.4663546926 | AN9: 36.75129 | AO9: 180.6374369 | AW9: =IF(B9="","",MAX(AW$2:AW8)+1) -> 7 | AX9: Darwin NT
B10: East Sale Vic | C10: 3.5 | D10: 0.7606307923 | F10: Chattel Mortgage | I10: System's average | J10: =J9*VLOOKUP(t_13,data!B3:C62,2) -> 39 | L10: Post tax | M10: =z_35 -> 3729.57 | W10: 5 | X10: 14600 | Y10: 13952.42814 | Z10: 0.3434285546 | AA10: 4791.66223 | AB10: 21220.00299 | AC10: 5 | AD10: 25329.95837 | AE10: -20538.29614 | AF10: 0.393238803 | AG10: 5 | AH10: 5741.286524 | AI10: 949.6242938 | AJ10: 25329.95837 | AK10: 0.393238803 | AL10: 1.815451627 | AM10: ='Solar Simulator'!X$55 -> 0.4663546926 | AN10: 39.3238803 | AO10: 181.5451627 | AQ10: Cost of capital | AW10: =IF(B10="","",MAX(AW$2:AW9)+1) -> 8 | AX10: East Sale Vic
B11: Forrest WA | C11: 4.7 | D11: 1.032104545 | W11: 6 | X11: 14600 | Y11: 13882.666 | Z11: 0.3674685534 | AA11: 5101.443193 | AB11: 26321.44618 | AC11: 6 | AD11: 0 | AE11: 5101.443193 | AF11: 0.4207655192 | AG11: 6 | AH11: 6143.17658 | AI11: 1041.733387 | AJ11: 0 | AK11: 0.4207655192 | AL11: 0.001 | AM11: ='Solar Simulator'!X$55 -> 0.4663546926 | AN11: 42.07655192 | AO11: 0.1 | AQ11: 0.06 | AW11: =IF(B11="","",MAX(AW$2:AW10)+1) -> 9 | AX11: Forrest WA
B12: Geraldton WA | C12: 4.8 | D12: 1.046392637 | M12: Year 1 repayments | N12: Savings | O12: checked | W12: 7 | X12: 14600 | Y12: 13813.25267 | Z12: 0.3931913522 | AA12: 5431.251496 | AB12: 31752.69768 | AC12: 7 | AD12: 0 | AE12: 5431.251496 | AF12: 0.4502191056 | AG12: 7 | AH12: 6573.198941 | AI12: 1141.947445 | AJ12: 0 | AK12: 0.4502191056 | AL12: 0.001 | AM12: ='Solar Simulator'!X$55 -> 0.4663546926 | AN12: 45.02191056 | AO12: 0.1 | AW12: =IF(B12="","",MAX(AW$2:AW11)+1) -> 10 | AX12: Geraldton WA
B13: Halls Creek WA | C13: 5.1 | D13: 1.116992622 | M13: =t_37*12 -> 25329.95837 | N13: =z_35-M13 -> -21600.38837 | O13: =INT(N13*100)/100 -> -21600.39 | W13: 8 | X13: 14600 | Y13: 13744.18641 | Z13: 0.4207147468 | AA13: 5782.381905 | AB13: 37535.07958 | AC13: 8 | AD13: 0 | AE13: 5782.381905 | AF13: 0.4817344429 | AG13: 8 | AH13: 7033.322867 | AI13: 1250.940962 | AJ13: 0 | AK13: 0.4817344429 | AL13: 0.001 | AM13: ='Solar Simulator'!X$55 -> 0.4663546926 | AN13: 48.17344429 | AO13: 0.1 | AQ13: Annual System Degradation | AW13: =IF(B13="","",MAX(AW$2:AW12)+1) -> 11 | AX13: Halls Creek WA
B14: Hobart Tas | C14: 3.5 | D14: 0.29 | F14: Month | L14: =IF(g_37<>data!F3,t_37*0.7,"") -> 1477.580905 | M14: =IFERROR(L14*12,0) -> 17730.97086 | N14: =IFERROR(z_37-M14,0) -> -14001.40086 | O14: =INT(N14*100)/100 -> -14001.41 | W14: 9 | X14: 14600 | Y14: 13675.46548 | Z14: 0.4501647791 | AA14: 6156.212895 | AB14: 43691.29248 | AC14: 9 | AD14: 0 | AE14: 6156.212895 | AF14: 0.5154558539 | AG14: 9 | AH14: 7525.655468 | AI14: 1369.442573 | AJ14: 0 | AK14: 0.5154558539 | AL14: 0.001 | AM14: ='Solar Simulator'!X$55 -> 0.4663546926 | AN14: 51.54558539 | AO14: 0.1 | AQ14: 0.005 | AW14: =IF(B14="","",MAX(AW$2:AW13)+1) -> 12 | AX14: Hobart Tas
B15: Kalgoorlie WA | C15: 4.1 | D15: 0.9077140947 | F15: 12 | W15: 10 | X15: 14600 | Y15: 13607.08815 | Z15: 0.4816763137 | AA15: 6554.212059 | AB15: 50245.50454 | AC15: 10 | AD15: 0 | AE15: 6554.212059 | AF15: 0.5515377637 | AG15: 10 | AH15: 8052.45135 | AI15: 1498.239292 | AJ15: 0 | AK15: 0.5515377637 | AL15: 0.001 | AM15: ='Solar Simulator'!X$55 -> 0.4663546926 | AN15: 55.15377637 | AO15: 0.1 | AW15: =IF(B15="","",MAX(AW$2:AW14)+1) -> 13 | AX15: Kalgoorlie WA
B16: Launceston Tas | C16: 3.5 | D16: 0.7774403126 | F16: 24 | W16: 11 | X16: 14600 | Y16: 13539.05271 | Z16: 0.5153936556 | AA16: 6977.941868 | AB16: 57223.4464 | AC16: 11 | AD16: 0 | AE16: 6977.941868 | AF16: 0.5901454072 | AG16: 11 | AH16: 8616.122945 | AI16: 1638.181077 | AJ16: 0 | AK16: 0.5901454072 | AL16: 0.001 | AM16: ='Solar Simulator'!X$55 -> 0.4663546926 | AN16: 59.01454072 | AO16: 0.1 | AQ16: Tree-o-metter | AW16: =IF(B16="","",MAX(AW$2:AW15)+1) -> 14 | AX16: Launceston Tas
B17: Laverton Vic | C17: 3.8 | D17: 0.8421569656 | F17: 36 | W17: 12 | X17: 14600 | Y17: 13471.35744 | Z17: 0.5514712115 | AA17: 7429.06581 | AB17: 64652.51221 | AC17: 12 | AD17: 0 | AE17: 7429.06581 | AF17: 0.6314555857 | AG17: 12 | AH17: 9219.251551 | AI17: 1790.185741 | AJ17: 0 | AK17: 0.6314555857 | AL17: 0.001 | AM17: ='Solar Simulator'!X$55 -> 0.4663546926 | AN17: 63.14555857 | AO17: 0.1 | AQ17: car | AR17: 1 | AW17: =IF(B17="","",MAX(AW$2:AW16)+1) -> 15 | AX17: Laverton Vic
B18: Longreach Qld | C18: 5.1 | D18: 1.12791881 | F18: 48 | W18: 13 | X18: 14600 | Y18: 13404.00066 | Z18: 0.5900741963 | AA18: 7909.354915 | AB18: 72561.86713 | AC18: 13 | AD18: 0 | AE18: 7909.354915 | AF18: 0.6756574767 | AG18: 13 | AH18: 9864.59916 | AI18: 1955.244245 | AJ18: 0 | AK18: 0.6756574767 | AL18: 0.001 | AM18: ='Solar Simulator'!X$55 -> 0.4663546926 | AN18: 67.56574767 | AO18: 0.1 | AQ18: PV | AR18: =AS18/5.1 -> 0 | AW18: =IF(B18="","",MAX(AW$2:AW17)+1) -> 16 | AX18: Longreach Qld
B19: Melbourne Vic | C19: 3.8 | D19: 1.35 | F19: 60 | W19: 14 | X19: 14600 | Y19: 13336.98065 | Z19: 0.63137939 | AA19: 8420.69471 | AB19: 80982.56184 | AC19: 14 | AD19: 0 | AE19: 8420.69471 | AF19: 0.7229535001 | AG19: 14 | AH19: 10555.1211 | AI19: 2134.426391 | AJ19: 0 | AK19: 0.7229535001 | AL19: 0.001 | AM19: ='Solar Simulator'!X$55 -> 0.4663546926 | AN19: 72.29535001 | AO19: 0.1 | AQ19: Tonnes CO2 | AR19: Tree-o-metter data | AS19: 0.039 | AW19: =IF(B19="","",MAX(AW$2:AW18)+1) -> 17 | AX19: Melbourne Vic
B20: Mildura Vic | C20: 4.4 | D20: 0.9665474156 | F20: 72 | W20: 15 | X20: 14600 | Y20: 13270.29575 | Z20: 0.6755759474 | AA20: 8965.092623 | AB20: 89947.65446 | AC20: 15 | AD20: 0 | AE20: 8965.092623 | AF20: 0.7735602451 | AG20: 15 | AH20: 11293.97958 | AI20: 2328.886955 | AJ20: 0 | AK20: 0.7735602451 | AL20: 0.001 | AM20: ='Solar Simulator'!X$55 -> 0.4663546926 | AN20: 77.35602451 | AO20: 0.1 | AQ20: 5.1 | AR20: Tree | AS20: 1 | AW20: =IF(B20="","",MAX(AW$2:AW19)+1) -> 18 | AX20: Mildura Vic
B21: Mt Gambier SA | C21: 3.7 | D21: 0.806016497 | F21: 84 | W21: 16 | X21: 14600 | Y21: 13203.94427 | Z21: 0.7228662637 | AA21: 9544.685861 | AB21: 99492.34032 | AC21: 16 | AD21: 0 | AE21: 9544.685861 | AF21: 0.8277094622 | AG21: 16 | AH21: 12084.55815 | AI21: 2539.872287 | AJ21: 0 | AK21: 0.8277094622 | AL21: 0.001 | AM21: ='Solar Simulator'!X$55 -> 0.4663546926 | AN21: 82.77094622 | AO21: 0.1 | AQ21: =INT(t_15*365*VLOOKUP(t_13,B3:D62,3,FALSE)/100)/10 -> 15 | AR21: PV | AS21: =INT((AQ21/AS19)+0.5) -> 385 | AW21: =IF(B21="","",MAX(AW$2:AW20)+1) -> 19 | AX21: Mt Gambier SA
B22: Oodnadatta NT | C22: 5 | D22: 1.088416438 | W22: 17 | X22: 14600 | Y22: 13137.92455 | Z22: 0.7734669021 | AA22: 10161.7498 | AB22: 109654.0901 | AC22: 17 | AD22: 0 | AE22: 10161.7498 | AF22: 0.8856491246 | AG22: 17 | AH22: 12930.47722 | AI22: 2768.727417 | AJ22: 0 | AK22: 0.8856491246 | AL22: 0.001 | AM22: ='Solar Simulator'!X$55 -> 0.4663546926 | AN22: 88.56491246 | AO22: 0.1 | AS22: =IFERROR(AS21,"") -> 385 | AW22: =IF(B22="","",MAX(AW$2:AW21)+1) -> 20 | AX22: Oodnadatta NT
B23: Perth WA | C23: 4.4 | D23: 0.96 | W23: 18 | X23: 14600 | Y23: 13072.23493 | Z23: 0.8276095853 | AA23: 10818.70693 | AB23: 120472.7971 | AC23: 18 | AD23: 0 | AE23: 10818.70693 | AF23: 0.9476445633 | AG23: 18 | AH23: 13835.61062 | AI23: 3016.903697 | AJ23: 0 | AK23: 0.9476445633 | AL23: 0.001 | AM23: ='Solar Simulator'!X$55 -> 0.4663546926 | AN23: 94.76445633 | AO23: 0.1 | AW23: =IF(B23="","",MAX(AW$2:AW22)+1) -> 21 | AX23: Perth WA
B24: Port Hedland WA | C24: 5.1 | D24: 1.120354526 | W24: 19 | X24: 14600 | Y24: 13006.87375 | Z24: 0.8855422562 | AA24: 11518.13633 | AB24: 131990.9334 | AC24: 19 | AD24: 0 | AE24: 11518.13633 | AF24: 1.013979683 | AG24: 19 | AH24: 14804.10337 | AI24: 3285.967038 | AJ24: 0 | AK24: 1.013979683 | AL24: 0.001 | AM24: ='Solar Simulator'!X$55 -> 0.4663546926 | AN24: 101.3979683 | AO24: 0.1 | AW24: =IF(B24="","",MAX(AW$2:AW23)+1) -> 22 | AX24: Port Hedland WA
B25: Rockhampton Qld | C25: 4.5 | D25: 0.9783140798 | W25: 20 | X25: 14600 | Y25: 12941.83938 | Z25: 0.9475302142 | AA25: 12262.78384 | AB25: 144253.7172 | AC25: 20 | AD25: 0 | AE25: 12262.78384 | AF25: 1.084958261 | AG25: 20 | AH25: 15840.3906 | AI25: 3577.60676 | AJ25: 0 | AK25: 1.084958261 | AL25: 0.001 | AM25: ='Solar Simulator'!X$55 -> 0.4663546926 | AN25: 108.4958261 | AO25: 0.1 | AW25: =IF(B25="","",MAX(AW$2:AW24)+1) -> 23 | AX25: Rockhampton Qld
B26: Sydney NSW | C26: 3.9 | D26: 1.06 | AW26: =IF(B26="","",MAX(AW$2:AW25)+1) -> 24 | AX26: Sydney NSW
B27: Tennant Creek NT | C27: 4.9 | D27: 1.064883109 | AF27: Total: | AH27: =SUM(AH6:AH25) -> 179560.2564 | AI27: =SUM(AI6:AI25) -> 35306.53914 | AJ27: =SUM(AJ6:AJ25) -> 126649.7919 | AW27: =IF(B27="","",MAX(AW$2:AW26)+1) -> 25 | AX27: Tennant Creek NT
B28: Townsville Qld | C28: 4.4 | D28: 0.9589831315 | AF28: Savings for 20 years | AH28: =AH27-AI27-AJ27 -> 17603.92535 | AW28: =IF(B28="","",MAX(AW$2:AW27)+1) -> 26 | AX28: Townsville Qld
B29: Wagga Wagga NSW | C29: 4.1 | D29: 0.9035117146 | AW29: =IF(B29="","",MAX(AW$2:AW28)+1) -> 27 | AX29: Wagga Wagga NSW
B30: Williamtown NSW | C30: 3.8 | D30: 0.8387950616 | AW30: =IF(B30="","",MAX(AW$2:AW29)+1) -> 28 | AX30: Williamtown NSW
AW31: =IF(B31="","",MAX(AW$2:AW30)+1) -> 
AW32: =IF(B32="","",MAX(AW$2:AW31)+1) -> 
AW33: =IF(B33="","",MAX(AW$2:AW32)+1) -> 
AW34: =IF(B34="","",MAX(AW$2:AW33)+1) -> 
AW35: =IF(B35="","",MAX(AW$2:AW34)+1) -> 
I36: checked | M36: checked | P36: instead of 10k,15k,... I insert universal values b1, b2,... | AW36: =IF(B36="","",MAX(AW$2:AW35)+1) -> 
F37: Residental Loan Calculator | G37: CHECKED | I37: CAFGA INPUTS | M37: k - TABLE | Q37: Brokerage | AW37: =IF(B37="","",MAX(AW$2:AW36)+1) -> 
F38: Loan Amount | G38: =j_13 -> 100000 | H38: 2 | I38: Cost installed | J38: =IF(ISNUMBER(b_9),b_9,"") -> 100000 | N38: From min | O38: To max | AW38: =IF(B38="","",MAX(AW$2:AW37)+1) -> 
F39: Term | G39: =j_39 -> 120 | H39: 3 | I39: Energy Inflation | J39: =b_5 -> 0.07 | M39: =IF(AND(c_5>=N39,c_5<O39),1,0) -> 0 | N39: 2000 | O39: 5000.99 | P39: b1 | Q39: 0.1 | R39: Enter brokerage rates here | AW39: =IF(B39="","",MAX(AW$2:AW38)+1) -> 
F40: APR | G40: ='Solar Simulator'!I38 -> 0.1245 | H40: 4 | I40: Rate | J40: 0.06 | K40: =J40/12 -> 0.005 | M40: 0 | N40: 5001 | O40: 10000.99 | P40: b2 | Q40: 0.1 | AW40: =IF(B40="","",MAX(AW$2:AW39)+1) -> 
F41: Establishment Fee | G41: ='Solar Simulator'!I40 -> 200 | H41: 5 | I41: Term | J41: =K41/12 -> 5 | K41: =J44 -> 60 | M41: 0 | N41: 10001 | O41: 20000.99 | P41: b3 | Q41: 0.06 | AW41: =IF(B41="","",MAX(AW$2:AW40)+1) -> 
F42: Monthly Fee | G42: ='Solar Simulator'!I42 -> 7.5 | H42: 6 | I42: Time Period | M42: 0 | N42: 20001 | O42: 35000.99 | P42: b4 | Q42: 0.06 | AW42: =IF(B42="","",MAX(AW$2:AW41)+1) -> 
F43: Monthly | G43: =IFERROR((-PMT(G40/12,G39,G38+G41,0,0)+G42),"") -> 1471.264884 | I43: Start | J43: 2013-09-01 | M43: 0 | N43: 35001 | O43: 60000.99 | P43: b5 | Q43: 0.06 | AW43: =IF(B43="","",MAX(AW$2:AW42)+1) -> 
F44: Forthnightly: | G44: =IFERROR(G43*12/26,"") -> 679.0453311 | I44: No. of Months | J44: =b_7 -> 60 | M44: 1 | N44: 60001 | O44: 99999999999 | P44: b6 | Q44: 0.06 | AW44: =IF(B44="","",MAX(AW$2:AW43)+1) -> 
F45: Weekly: | G45: =IFERROR(G43*12/52,"") -> 339.5226655 | I45: RBA | J45: 0.0275 | AW45: =IF(B45="","",MAX(AW$2:AW44)+1) -> 
F46: Daily: | G46: =IFERROR(G45/7,"") -> 48.50323793 | AW46: =IF(B46="","",MAX(AW$2:AW45)+1) -> 
I47: checked | M47: checked | AW47: =IF(B47="","",MAX(AW$2:AW46)+1) -> 
F48: Governmnet and Schools Rental | G48: CHECKED | I48: K factor | J48: Brokerage | M48: Brokerage | P48: 12 | Q48: 24 | R48: 36 | S48: 48 | T48: 60 | U48: 72 | V48: 84 | AW48: =IF(B48="","",MAX(AW$2:AW47)+1) -> 
F49: Term | G49: ='Solar Simulator'!T34 -> 84 | H49: 4 | I49: =VLOOKUP(1,M39:P44,4,FALSE) -> b6 | J49: =VLOOKUP(1,M39:Q44,5,FALSE) -> 0.06 | M49: =Q39 -> 0.1 | N49: =P39 -> b1 | O49: =CONCATENATE(N49," ",M49) -> b1 0.1 | P49: 0.13 | Q49: 0.1275 | R49: 0.1275 | S49: 0.1275 | T49: 0.1275 | U49: 0.1375 | V49: 0.1375 | AW49: =IF(B49="","",MAX(AW$2:AW48)+1) -> 
F50: Cost net GST | G50: =b_9 -> 100000 | H50: 5 | I50: =CONCATENATE(I49," ",J49) -> b6 0.06 | M50: 0.1 | N50: b2 | O50: b2 0.1 | P50: 0.1175 | Q50: 0.1075 | R50: 0.1075 | S50: 0.1075 | T50: 0.1075 | U50: 0.1175 | V50: 0.1175 | W50: enter interest rates here | AW50: =IF(B50="","",MAX(AW$2:AW49)+1) -> 
F51: Last Payment | G51: =IFERROR(G50*1.2%,"") -> 1200 | H51: 6 | I51: row | J51: column | M51: 0.06 | N51: b3 | O51: b3 0.06 | P51: 0.109 | Q51: 0.0676 | R51: 0.0675 | S51: 0.0675 | T51: 0.0675 | U51: 0.0775 | V51: 0.0775 | AW51: =IF(B51="","",MAX(AW$2:AW50)+1) -> 
F52: Rate | G52: ='Solar Simulator'!Y32 -> 0.065 | H52: 7 | I52: =MATCH(I50,O49:O54,0) -> 6 | J52: =MATCH(K41,P48:V48,0) -> 5 | M52: 0.06 | N52: b4 | O52: b4 0.06 | P52: 0.105 | Q52: 0.06 | R52: 0.06 | S52: 0.06 | T52: 0.06 | U52: 0.07 | V52: 0.07 | AW52: =IF(B52="","",MAX(AW$2:AW51)+1) -> 
F53: Payment | G53: =IFERROR(PMT(G52/12,G49,-G50*1.04,G51,0),"") -> 1533.022069 | I53: Rate | M53: 0.06 | N53: b5 | O53: b5 0.06 | P53: 0.1 | Q53: 0.057 | R53: 0.057 | S53: 0.057 | T53: 0.057 | U53: 0.067 | V53: 0.067 | AW53: =IF(B53="","",MAX(AW$2:AW52)+1) -> 
I54: =INDEX(P49:V54,I52,J52) -> 0.055 | M54: 0.06 | N54: b6 | O54: b6 0.06 | P54: 0.0975 | Q54: 0.055 | R54: 0.055 | S54: 0.055 | T54: 0.055 | U54: 0.065 | V54: 0.065 | AW54: =IF(B54="","",MAX(AW$2:AW53)+1) -> 
AW55: =IF(B55="","",MAX(AW$2:AW54)+1) -> 
AW56: =IF(B56="","",MAX(AW$2:AW55)+1) -> 
I57: checked | M57: checked | Q57: checked | AW57: =IF(B57="","",MAX(AW$2:AW56)+1) -> 
I58: Rental | M58: Finance Lease | Q58: Hire purchase | T58: Fees | U58: 0 | AW58: =IF(B58="","",MAX(AW$2:AW57)+1) -> 
I59: Term | J59: =b_7 -> 60 | M59: Term | N59: =b_7 -> 60 | O59: 35 | Q59: Term | R59: =b_7 -> 60 | AW59: =IF(B59="","",MAX(AW$2:AW58)+1) -> 
I60: Cost | J60: =b_9 -> 100000 | M60: Cost | N60: =b_9 -> 100000 | O60: 36 | Q60: Cost | R60: =b_9 -> 100000 | AW60: =IF(B60="","",MAX(AW$2:AW59)+1) -> 
I61: Brokerage | J61: =J49 -> 0.06 | M61: Brokerage | N61: =J49 -> 0.06 | O61: 37 | Q61: Brokerage | R61: =J49 -> 0.06 | AW61: =IF(B61="","",MAX(AW$2:AW60)+1) -> 
I62: Rate | J62: =I54 -> 0.055 | M62: Residual | N62: =IFERROR(N60*b_11,"") -> 0 | O62: 38 | Q62: Residual | R62: =IFERROR(R60*b_13*100/110,"") -> 0 | AW62: =IF(B62="","",MAX(AW$2:AW61)+1) -> 
I63: Payment | J63: =IFERROR(PMT(J62/12,J59,-((J60*J61)+(J60+U58)),0,1),"") -> 2015.485548 | M63: Rate | N63: =I54+0.02 -> 0.075 | O63: 39 | Q63: Rate | R63: =I54 -> 0.055
M64: Payment | N64: =IFERROR(PMT(N63/12,N59,-((N60*N61)+(N60+U58)),N62,1),"") -> 2110.829864 | O64: 40 | Q64: Payment | R64: =IFERROR(PMT(R63/12,R59,-((R60*R61)+(R60+U58)),R62,1),"") -> 2015.485548
I68: Finance option 1 | M68: Finance Option 2 | Q68: Finance Option 3
I69: Monthly Payment | J69: =J63 -> 2015.485548 | M69: Residual Value | N69: =b_11 -> 0 | Q69: Residual Value | R69: =b_13 -> 0
I70: Term | J70: =b_7 -> 60 | M70: Monthly Payment | N70: =N64 -> 2110.829864 | Q70: Monthly Payment | R70: =R64 -> 2015.485548
I71: Total | J71: =J69*d_9 -> 120929.1329 | M71: Term | N71: =J70 -> 60 | Q71: Term | R71: =J70 -> 60
I72: Rental inc GST | J72: =J69*1.1 -> 2217.034103 | M72: Total | N72: =N70*d_9+c_5*N69 -> 126649.7919 | Q72: Total | R72: =R70*d_9+c_5*R69 -> 120929.1329
M73: Finance Lease inc GST | N73: =N70*1.1 -> 2321.912851 | Q73: Hire Purchase inc GST | R73: =R70*1.1 -> 2217.034103
Q74: GST claimed: | R74: =R60-R60/1.1 -> 9090.909091
